bitfinex/quotes_ETHUSD_20220305
["timestamp","ask_amount","ask_price","bid_price","bid_amount"]
[1646507773733,0.10823229,2672.4,2672.2,1.05127029]
[1646507774536,0.10498949,2672.4,2672.2,1.05127029]
[1646507774939,0.10823229,2672.4,2672.2,1.05127029]
[1646507775737,0.10498949,2672.4,2672.2,1.05127029]
[1646507776135,0.10823229,2672.4,2672.2,1.05127029]
[1646507776978,0.10498949,2672.4,2672.2,1.05127029]
[1646507777379,0.10823229,2672.4,2672.2,1.05127029]
[1646507777581,0.10823229,2672.4,2672.2,0.02285287]
[1646507778181,0.10498949,2672.4,2672.2,0.02285287]
[1646507778383,1.5342672,2672.3,2672.2,0.02285287]
[1646507778581,0.10823229,2672.4,2672.2,0.02285287]
[1646507779083,0.10823229,2672.4,2672.0,1.1555572]
[1646507779486,0.10498949,2672.4,2672.0,1.1555572]
[1646507779687,0.10823229,2672.4,2672.0,1.1555572]
[1646507780528,0.10498949,2672.4,2672.0,1.1555572]
[1646507781028,0.10823223,2672.4,2672.0,1.1555572]
[1646507781830,0.10498949,2672.4,2672.0,1.1555572]
[1646507782032,0.10823223,2672.4,2672.0,1.1555572]
[1646507783033,0.10498949,2672.4,2672.0,1.1555572]
[1646507783235,0.10823223,2672.4,2672.0,1.1555572]
[1646507783635,0.10823223,2672.4,2672.2,0.02287324]
[1646507784183,0.10498949,2672.4,2672.2,0.02287324]
[1646507784482,0.10823229,2672.4,2672.2,0.02287324]
[1646507785383,0.103786,2672.4,2672.2,0.02287324]
[1646507785582,0.1070288,2672.4,2672.2,0.02287324]
[1646507786583,0.103786,2672.4,2672.2,0.02287324]
[1646507786783,0.1070288,2672.4,2672.2,0.02287324]
[1646507787932,0.103786,2672.4,2672.2,0.02287324]
[1646507788133,0.1070288,2672.4,2672.2,0.02287324]
[1646507788734,1.53428371,2672.3,2672.2,0.02287324]
[1646507789339,0.1070288,2672.4,2671.7,0.0032437]
[1646507789540,0.1079888,2672.4,2671.7,0.0032437]
[1646507789740,0.1079888,2672.4,2671.8,1.05904027]
[1646507789939,1.53426082,2672.3,2671.8,1.05904027]
[1646507791140,0.10798869,2672.4,2671.8,1.05904027]
[1646507791339,0.104746,2672.4,2671.8,1.05904027]
[1646507791578,0.10798866,2672.4,2671.8,1.05904027]
[1646507791878,0.10702866,2672.4,2671.9,0.93586]
[1646507792680,0.103786,2672.4,2671.9,0.93586]
[1646507792883,0.10702872,2672.4,2671.9,0.93586]
[1646507793886,0.103786,2672.4,2671.9,0.93586]
[1646507794085,0.02652515,2672.3,2671.9,0.93586]
[1646507796330,0.02652515,2672.3,2672.2,1.04259906]
[1646507798834,0.02652515,2672.3,2671.7,4.50324367]
[1646507799089,0.02652515,2672.3,2671.7,1.00324367]
[1646507799284,0.02652515,2672.3,2671.7,3.50324367]
[1646507799485,0.10702877,2672.4,2671.7,3.50324367]
[1646507799685,0.10702877,2672.4,2671.7,4.50324367]
[1646507799885,0.103786,2672.4,2671.7,4.5]
[1646507800085,0.10702867,2672.4,2671.9,0.98062776]
[1646507801086,0.103786,2672.4,2671.9,0.98062776]
[1646507801287,0.10702872,2672.4,2671.9,0.98062776]
[1646507801786,0.10702872,2672.4,2671.9,1.91648776]
[1646507802185,0.103786,2672.4,2671.9,1.91648776]
[1646507802386,0.10702872,2672.4,2672.0,0.93584]
[1646507802588,0.10702872,2672.4,2672.0,2.80752]
[1646507802828,0.10702872,2672.4,2672.0,3.80752]
[1646507803430,0.103786,2672.4,2672.0,3.80752]
[1646507803629,1.53403677,2672.3,2672.0,3.80752]
[1646507804235,1.53403677,2672.3,2672.0,4.7433526]
[1646507805036,0.10702872,2672.4,2672.1,3.5]
[1646507805239,0.10702872,2672.4,2672.1,4.5]
[1646507805838,0.103786,2672.4,2672.1,4.5]
[1646507806035,0.10702877,2672.4,2672.1,4.5]
[1646507806236,0.10702877,2672.4,2672.1,1.0]
[1646507806587,0.10702877,2672.4,2672.0,4.7433526]
[1646507807178,0.10702875,2672.4,2672.0,4.7433526]
[1646507808178,0.103786,2672.4,2672.0,4.7433526]
[1646507808382,0.10702875,2672.4,2672.0,4.7433526]
[1646507809187,0.10702875,2672.4,2672.3,0.01744205]
[1646507809386,0.103786,2672.4,2672.3,0.01744205]
[1646507809588,1.64102493,2672.4,2672.3,0.01744205]
[1646507809786,1.63949965,2672.4,2672.3,0.01744205]
[1646507810631,1.6362569,2672.4,2672.3,0.01744205]
[1646507813735,1.6362569,2672.4,2672.2,0.95327205]
[1646507813936,0.10226072,2672.4,2672.2,0.95327205]
[1646507814388,0.10550352,2672.4,2672.2,0.95327205]
[1646507814589,1.53403916,2672.3,2672.2,0.95327205]
[1646507814795,1.53403916,2672.3,2672.2,0.01744205]
[1646507814796,5.03403916,2672.3,2672.2,0.01744205]
[1646507815187,1.53403916,2672.3,2672.2,0.01744205]
[1646507816096,5.03403916,2672.3,2672.2,0.01744205]
[1646507816292,5.03403916,2672.3,2672.2,4.205e-05]
[1646507816490,5.91989198,2672.3,2672.2,4.205e-05]
[1646507816689,5.03403916,2672.3,2672.2,4.205e-05]
[1646507816894,1.53403916,2672.3,2672.2,4.205e-05]
[1646507817090,5.03403916,2672.3,2672.2,4.205e-05]
[1646507818332,1.53403916,2672.3,2672.2,4.205e-05]
[1646507819139,1.53403916,2672.3,2672.2,1.21742011]
[1646507819335,1.53403916,2672.3,2672.2,1.21737806]
[1646507819536,1.53403916,2672.3,2672.2,4.21737806]
[1646507820736,1.53403916,2672.3,2672.2,5.21737806]
[1646507820938,0.10572478,2672.4,2672.2,5.21737806]
[1646507821590,0.1036812,2672.4,2672.2,5.21737806]
[1646507822683,0.10226072,2672.4,2672.2,5.21737806]
[1646507822886,0.1036812,2672.4,2672.2,5.21737806]
[1646507823685,0.1036812,2672.4,2672.2,5.25001129]
[1646507823889,0.10226072,2672.4,2672.2,5.25001129]
[1646507824087,0.10573456,2672.4,2672.2,5.25001129]
[1646507825091,0.10226072,2672.4,2672.2,5.25001129]
[1646507825331,0.10573456,2672.4,2672.2,5.25001129]
[1646507826135,0.00603665,2672.4,2672.2,5.25001129]
[1646507826334,0.00256281,2672.4,2672.2,5.25001129]
[1646507826538,0.00603665,2672.4,2672.2,5.25001129]
[1646507827537,0.00256281,2672.4,2672.2,5.25001129]
[1646507827736,0.00603665,2672.4,2672.2,5.25001129]
[1646507828539,0.00603665,2672.4,2672.3,1.87157]
[1646507828840,0.03097336,2672.4,2672.3,1.87157]
[1646507829889,0.02760374,2672.4,2672.2,7.12158129]
[1646507831093,0.03017257,2672.5,2672.2,8.99324129]
[1646507831291,0.00336962,2672.4,2672.2,8.99324129]
[1646507832291,0.03017257,2672.5,2672.2,8.99324129]
[1646507832491,0.00323115,2672.4,2672.2,8.99324129]
[1646507833532,0.03017257,2672.5,2672.2,8.99324129]
[1646507833733,0.02827208,2672.4,2672.2,8.99324129]
[1646507834736,0.02504093,2672.4,2672.2,8.99324129]
[1646507834937,0.02827208,2672.4,2672.2,8.99324129]
[1646507835837,0.02504093,2672.4,2672.2,8.99324129]
[1646507836037,0.0282785,2672.4,2672.2,8.99324129]
[1646507837082,0.02504093,2672.4,2672.2,8.99324129]
[1646507837282,0.0282785,2672.4,2672.2,8.99324129]
[1646507837484,0.01296218,2673.1,2672.4,5.0]
[1646507837685,0.01296218,2673.1,2672.6,0.93551]
[1646507837686,1.53373699,2673.0,2672.6,0.93551]
[1646507837882,0.02729226,2673.1,2672.6,0.93551]
[1646507838483,0.15791944,2673.2,2672.8,5.0]
[1646507838684,0.1865796,2673.2,2672.8,5.54]
[1646507838883,0.1865796,2673.2,2672.8,6.54]
[1646507839082,0.0090382,2673.5,2672.8,6.54]
[1646507839287,0.0090382,2673.5,2672.8,6.9146]
[1646507839288,1.55096036,2673.4,2672.8,6.9146]
[1646507839492,0.10139322,2673.7,2672.9,2.8746]
[1646507839689,1.53336643,2673.6,2672.9,2.8746]
[1646507839887,1.53336643,2673.6,2672.9,3.8746]
[1646507840087,1.53336643,2673.6,2672.9,4.8746]
[1646507840535,1.53336643,2673.6,2672.9,5.80992]
[1646507841335,1.53336643,2673.6,2672.9,6.7452497]
[1646507841535,0.10139322,2673.7,2673.0,2.36954202]
[1646507841735,0.10139322,2673.7,2673.2,5.05049]
[1646507841936,0.01891,2673.9,2673.3,2.5]
[1646507842136,0.01891,2673.9,2673.4,3.74084]
[1646507842137,0.01294395,2673.8,2673.4,3.74084]
[1646507842436,0.01294395,2673.8,2673.4,4.74084]
[1646507842637,1.15261395,2674.1,2673.4,4.74084]
[1646507842836,1.15165395,2674.1,2673.5,1.18198294]
[1646507843033,1.15165395,2674.1,2674.0,0.97261106]
[1646507843237,3.06255636,2674.2,2674.0,1.90783106]
[1646507847095,3.06602882,2674.2,2674.0,1.90783106]
[1646507847931,3.06255636,2674.2,2674.0,1.90783106]
[1646507848131,3.06602882,2674.2,2674.0,1.90783106]
[1646507848331,3.06602882,2674.2,2674.0,6.40783106]
[1646507848733,3.06602882,2674.2,2674.1,0.01702818]
[1646507849135,3.06255636,2674.2,2674.1,0.01702818]
[1646507849335,3.06602882,2674.2,2674.1,0.01702818]
[1646507849939,3.06602882,2674.2,2674.0,6.37377471]
[1646507850338,3.06255636,2674.2,2674.0,6.37377471]
[1646507851136,3.01255636,2674.2,2674.0,6.37377471]
[1646507851339,3.01255636,2674.2,2674.0,5.43855471]
[1646507851784,3.01591163,2674.2,2674.0,5.43855471]
[1646507852584,3.01255636,2674.2,2674.0,5.43855471]
[1646507852984,3.01591163,2674.2,2674.0,6.43855471]
[1646507853187,3.01591163,2674.2,2674.0,7.37376471]
[1646507853783,3.01255636,2674.2,2674.0,7.37376471]
[1646507854190,3.01591163,2674.2,2674.1,0.01608217]
[1646507855094,3.01255636,2674.2,2674.1,0.01608217]
[1646507858942,3.01255636,2674.2,2674.0,5.45463688]
[1646507860087,3.01579192,2674.2,2674.0,5.45463688]
[1646507861086,3.01255636,2674.2,2674.0,5.45463688]
[1646507861291,3.01255636,2674.2,2674.0,7.38982688]
[1646507862589,3.01590307,2674.2,2674.0,7.38982688]
[1646507863436,0.0191954,2674.2,2674.0,13.67825431]
[1646507863636,0.02254211,2674.2,2674.1,0.55622605]
[1646507863833,0.02254211,2674.2,2674.1,0.93082605]
[1646507864035,0.01599936,2674.7,2674.4,0.93485]
[1646507864238,0.01599936,2674.7,2674.5,4.42114787]
[1646507864438,0.03459921,2675.1,2674.7,2.5]
[1646507864641,0.03459921,2675.1,2674.6,3.5]
[1646507864837,0.03459921,2675.1,2674.6,1.0]
[1646507865038,0.03459921,2675.1,2674.6,4.5]
[1646507865543,0.03459921,2675.1,2674.8,0.93475]
[1646507865740,0.03459921,2675.1,2674.8,4.43475]
[1646507866138,0.03459921,2675.1,2674.8,5.43475]
[1646507867192,0.03459921,2675.1,2674.8,6.3694875]
[1646507867395,0.00455422,2675.1,2674.9,8.34384]
[1646507867790,0.02766068,2675.3,2675.0,4.0]
[1646507867990,0.02766068,2675.3,2675.1,2.40924]
[1646507867991,0.03676912,2675.3,2675.1,2.40924]
[1646507868194,0.03676912,2675.3,2675.2,4.53148213]
[1646507868393,0.0403223,2675.5,2675.3,5.0]
[1646507868394,0.03286214,2675.5,2675.3,5.0]
[1646507868594,6.214e-05,2675.5,2675.4,4.4146]
[1646507868792,0.00541824,2676.4,2675.5,5.3746]
[1646507868994,0.00541824,2676.4,2675.7,1.86848]
[1646507868995,0.01370104,2676.4,2675.7,1.86848]
[1646507869194,0.04096791,2676.3,2675.8,3.5]
[1646507869394,0.04096791,2676.3,2675.8,4.44771291]
[1646507869595,0.04039948,2676.2,2675.8,4.44771291]
[1646507869794,0.014937,2676.4,2675.8,6.38195291]
[1646507870438,0.014937,2676.4,2675.9,0.93423]
[1646507870845,0.014937,2676.4,2676.2,1.86854]
[1646507871040,0.0532062,2676.4,2676.3,1.8683619]
[1646507871240,0.0532062,2676.4,2676.3,1.37216145]
[1646507871738,0.09739048,2676.6,2676.2,1.0]
[1646507871739,0.098833,2676.6,2676.2,1.0]
[1646507872138,0.0032616,2676.5,2676.1,5.5]
[1646507872339,0.0032616,2676.5,2676.1,4.5]
[1646507873138,0.098833,2676.6,2676.1,4.5]
[1646507873341,0.00326163,2676.4,2676.1,4.5]
[1646507874189,0.03823856,2676.4,2676.1,4.51530801]
[1646507874589,0.04150023,2676.4,2676.1,4.51530801]
[1646507875492,0.03823856,2676.4,2676.1,4.51530801]
[1646507875690,0.04150023,2676.4,2676.1,4.51530801]
[1646507876692,0.03823856,2676.4,2676.1,4.51530801]
[1646507876892,0.04146714,2676.4,2676.1,4.51530801]
[1646507877292,0.04146714,2676.4,2676.1,6.38393801]
[1646507877693,0.04146714,2676.4,2676.3,0.89738437]
[1646507877939,0.03823856,2676.4,2676.3,1.83169437]
[1646507878142,0.04146714,2676.4,2676.3,1.83169437]
[1646507878341,0.06059444,2676.6,2676.4,3.93409]
[1646507878644,0.06059444,2676.6,2676.4,0.93409]
[1646507878840,0.06059444,2676.6,2676.4,1.93409]
[1646507879042,0.06059444,2676.6,2676.4,0.93409]
[1646507879445,0.06059444,2676.6,2676.3,0.91266531]
[1646507879647,0.06059444,2676.6,2676.3,0.01528094]
[1646507880246,0.06059444,2676.6,2676.4,0.93428]
[1646507880646,0.06381249,2676.6,2676.4,1.87564151]
[1646507881601,0.06059444,2676.6,2676.4,1.87564151]
[1646507881787,0.06381245,2676.6,2676.4,1.87564151]
[1646507882588,0.06381245,2676.6,2676.4,0.94136151]
[1646507882790,0.06059444,2676.6,2676.4,0.94136151]
[1646507883189,0.06381245,2676.6,2676.4,0.94136151]
[1646507883892,0.06381245,2676.6,2676.3,0.01528094]
[1646507883893,0.06059444,2676.6,2676.3,0.01528094]
[1646507884092,0.06381415,2676.6,2676.5,0.0308759]
[1646507885097,0.06059444,2676.6,2676.5,0.0308759]
[1646507886740,3.76059444,2676.6,2676.5,0.0308759]
[1646507887940,3.76059444,2676.6,2676.5,3.5308759]
[1646507888344,3.76059444,2676.6,2676.5,4.5308759]
[1646507888542,3.76059444,2676.6,2676.5,5.42821374]
[1646507889390,3.76059444,2676.6,2676.5,5.42314499]
[1646507889791,3.76059444,2676.6,2676.5,1.92314499]
[1646507889992,3.76059444,2676.6,2676.5,0.92314499]
[1646507891591,3.76059444,2676.6,2676.5,0.02580715]
[1646507891794,0.0516143,2676.4,2676.1,7.36863]
[1646507892193,0.0516143,2676.4,2676.1,8.30292]
[1646507893047,0.0516143,2676.4,2676.2,1.20350212]
[1646507893453,0.0516143,2676.4,2676.1,8.30292]
[1646507894460,0.0516143,2676.4,2676.2,0.93431]
[1646507895858,0.0516143,2676.4,2676.1,9.51835814]
[1646507896458,0.0516143,2676.4,2676.2,0.9343]
[1646507898395,0.0516143,2676.4,2676.3,3.5]
[1646507898796,0.0516143,2676.4,2676.3,4.5]
[1646507898993,0.0516143,2676.4,2676.3,3.5]
[1646507899192,0.0516143,2676.4,2676.3,4.5]
[1646507899600,0.0516143,2676.4,2676.3,1.0]
[1646507899795,0.0516143,2676.4,2676.2,0.9343]
[1646507900845,0.0516143,2676.4,2676.3,3.5]
[1646507901248,0.0516143,2676.4,2676.3,4.5]
[1646507901447,0.0516143,2676.4,2676.3,3.5]
[1646507901649,0.0516143,2676.4,2676.3,1.0]
[1646507901849,0.0516143,2676.4,2676.2,1.0]
[1646507902049,0.0516143,2676.4,2676.1,9.51835814]
[1646507902249,0.0516143,2676.4,2676.1,8.58406814]
[1646507903747,0.07687038,2676.4,2676.1,8.58406814]
[1646507904493,0.039885,2676.4,2676.1,8.58406814]
[1646507905492,0.039885,2676.4,2676.1,6.71543814]
[1646507906195,0.04500138,2676.4,2676.1,6.71543814]
[1646507906393,0.04500138,2676.4,2676.1,7.64971814]
[1646507906595,0.04500138,2676.4,2676.2,0.93427]
[1646507907292,0.04500138,2676.4,2676.2,0.92672579]
[1646507909247,0.04500138,2676.4,2676.3,0.02150064]
[1646507909845,0.04500138,2676.4,2676.3,3.52150064]
[1646507910047,0.04500138,2676.4,2676.3,1.02150064]
[1646507910246,0.04500138,2676.4,2676.3,0.02150064]
[1646507913697,0.04500138,2676.4,2676.2,0.0223169]
[1646507913698,0.04500138,2676.4,2676.2,0.04074602]
[1646507916952,5.04500138,2676.4,2676.2,0.04074602]
[1646507918958,5.04500138,2676.4,2676.2,0.01842912]
[1646507921201,1.53185193,2676.3,2676.2,0.01842912]
[1646507921400,1.53696831,2676.3,2676.2,0.01842912]
[1646507924248,1.53696831,2676.3,2676.1,5.51842912]
[1646507924448,0.00511638,2676.3,2676.1,5.51842912]
[1646507925249,0.00511638,2676.3,2676.1,6.45273912]
[1646507927091,0.00511638,2676.3,2676.2,3.5]
[1646507927291,0.00511638,2676.3,2676.2,4.5]
[1646507928498,0.00511638,2676.3,2676.2,4.45]
[1646507928895,0.00511638,2676.3,2676.2,4.48714063]
[1646507929696,0.00511638,2676.3,2676.2,1.03714063]
[1646507930094,0.00511638,2676.3,2676.2,0.03714063]
[1646507933648,0.00511638,2676.3,2676.2,0.01844653]
[1646507937100,1.53694762,2676.3,2676.2,0.01844653]
[1646507938943,1.53694762,2676.3,2676.1,5.52152095]
[1646507939145,1.53183124,2676.2,2676.1,5.52152095]
[1646507939444,0.00511638,2676.2,2676.1,5.52152095]
[1646507940047,1.53699511,2676.2,2676.1,5.52152095]
[1646507940847,0.00511638,2676.2,2676.1,5.52152095]
[1646507941246,0.00511638,2676.2,2676.1,6.62196043]
[1646507943494,0.00511638,2676.2,2676.1,10.12196043]
[1646507944300,0.00511638,2676.2,2676.1,6.62196043]
[1646507944800,0.00511638,2676.2,2676.1,5.52152095]
[1646507945000,1.53695527,2676.2,2676.1,5.52152095]
[1646507946243,1.53695527,2676.2,2676.1,4.52152095]
[1646507946843,4.0,2676.0,2675.3,1.0]
[1646507947044,3.0,2675.7,2674.9,0.3736]
[1646507947243,3.0,2675.7,2674.8,0.00321735]
[1646507947244,4.04,2675.6,2674.8,0.00321735]
[1646507947445,2.21735678,2675.5,2674.8,0.00321735]
[1646507947643,2.21735678,2675.5,2674.3,1.0]
[1646507947644,3.0,2674.9,2674.3,1.0]
[1646507947844,3.5,2674.8,2674.3,1.0]
[1646507948044,1.1461493,2674.4,2673.6,3.62773759]
[1646507948244,2.45541219,2674.4,2673.1,1.0]
[1646507948445,3.5,2674.3,2673.1,1.0]
[1646507948645,3.50511638,2674.3,2673.7,3.0]
[1646507949111,4.50511638,2674.3,2673.7,3.0]
[1646507949316,0.54,2674.2,2673.7,3.0]
[1646507949513,3.5,2674.1,2673.7,3.0]
[1646507949716,4.04511638,2674.1,2673.7,3.0]
[1646507950312,1.10663327,2673.8,2673.7,3.0]
[1646507951314,8.28483324,2673.8,2673.7,3.0]
[1646507951515,8.28994962,2673.8,2673.7,2.06744506]
[1646507951715,0.3746,2673.5,2672.3,1.0]
[1646507951918,0.3746,2673.3,2672.3,1.0]
[1646507952214,4.04,2673.2,2672.3,1.0]
[1646507952414,0.90908958,2672.8,2672.3,1.0]
[1646507952614,0.54,2672.7,2672.3,1.0]
[1646507953249,0.3746,2672.6,2671.2,1.0]
[1646507953452,0.3746,2672.5,2671.2,1.0]
[1646507953649,3.8746,2672.4,2671.2,1.0]
[1646507954052,4.78385948,2672.6,2671.2,1.3746]
[1646507954254,1.28385948,2672.6,2671.3,1.31055]
[1646507955054,4.0616,2672.8,2671.8,0.00345794]
[1646507955254,0.5616,2672.8,2671.8,0.00345794]
[1646507955454,4.0616,2672.8,2671.8,0.00345794]
[1646507955654,3.5,2672.7,2671.8,0.00345794]
[1646507955854,3.687,2673.0,2671.8,0.00345794]
[1646507956153,3.687,2673.0,2671.3,1.3746]
[1646507956154,3.687,2673.0,2672.2,0.00339332]
[1646507957100,0.3746,2672.9,2671.6,0.93586]
[1646507957298,3.687,2672.8,2672.3,0.96886658]
[1646507957497,3.687,2673.0,2672.5,0.00328938]
[1646507958300,0.3746,2672.9,2671.6,0.93586]
[1646507958501,3.5,2672.8,2671.6,0.93586]
[1646507958703,3.5,2672.8,2672.6,0.00328927]
[1646507958901,3.687,2673.0,2672.6,0.00328927]
[1646507959103,7.387,2673.0,2672.6,0.00328927]
[1646507959306,3.0,2672.9,2672.6,0.00328927]
[1646507959509,0.3746,2672.7,2671.3,2.0]
[1646507959712,0.3746,2672.7,2671.0,4.82190105]
[1646507959713,1.03383325,2672.2,2671.4,1.22125747]
[1646507959907,3.5,2672.1,2671.4,1.22125747]
[1646507960974,3.5,2672.1,2671.6,0.00299881]
[1646507961377,3.5,2672.1,2671.9,0.98818408]
[1646507961574,1.28320981,2672.2,2671.9,0.98818408]
[1646507962383,1.28320981,2672.2,2671.9,0.99118269]
[1646507962580,1.28320981,2672.2,2671.9,0.00299861]
[1646507962783,3.5,2672.1,2671.9,0.00299861]
[1646507963180,1.28320981,2672.2,2671.0,7.69370105]
[1646507963181,1.65780981,2672.2,2671.0,7.69370105]
[1646507963381,3.5,2672.1,2671.9,0.0030768]
[1646507963980,0.54,2672.0,2671.9,0.0030768]
[1646507964411,0.54,2672.0,2671.1,7.37]
[1646507964611,0.54,2672.0,2671.8,0.00315199]
[1646507965414,0.187,2672.4,2671.8,0.00315199]
[1646507965612,0.187,2672.4,2671.1,8.74640105]
[1646507965613,0.187,2672.4,2671.1,1.37640105]
[1646507965814,0.187,2672.4,2671.9,0.98628816]
[1646507966112,3.687,2672.4,2671.9,0.98628816]
[1646507966312,4.04,2672.6,2671.9,0.98628816]
[1646507966517,4.04511638,2672.6,2671.9,0.98628816]
[1646507966912,0.187,2672.5,2671.9,0.98628816]
[1646507967113,0.187,2672.5,2672.1,0.0030773]
[1646507967955,0.3746,2672.4,2671.1,0.00180105]
[1646507968155,4.4146,2672.3,2671.1,0.00180105]
[1646507968359,4.4146,2672.3,2672.2,0.0030025]
[1646507968360,5.04,2672.3,2672.2,0.0030025]
[1646507968559,7.9096,2672.3,2672.2,0.0030025]
[1646507968959,8.0966,2672.3,2672.2,0.0030025]
[1646507969159,8.0966,2672.3,2670.8,0.37640105]
[1646507969359,3.5,2672.2,2672.1,0.00300254]
[1646507969561,1.73211638,2672.3,2672.1,0.00300254]
[1646507969762,0.67711638,2672.3,2672.1,0.00300254]
[1646507970165,3.5,2672.2,2672.1,0.00300254]
[1646507970363,3.5,2672.2,2671.7,0.87631287]
[1646507970562,0.19211638,2672.3,2672.1,0.00301007]
[1646507970764,0.00511638,2672.3,2672.1,0.00301007]
[1646507971613,0.00511638,2672.3,2671.7,1.25091287]
[1646507972006,0.00511638,2672.3,2672.1,0.00301763]
[1646507972207,0.00511638,2672.3,2672.2,1.20997979]
[1646507978062,0.00511638,2672.3,2672.2,1.58457979]
[1646507982513,0.00511638,2672.3,2672.2,1.20997979]
[1646507985969,0.00511638,2672.3,2672.2,1.15997979]
[1646507987408,0.00511638,2672.3,2671.9,1.0]
[1646507987612,0.00511638,2672.3,2672.1,0.0030162]
[1646507988307,0.00511638,2672.3,2671.3,1.187]
[1646507988510,0.00511638,2672.3,2671.7,1.21060979]
[1646507988715,0.00511638,2672.3,2672.1,0.00184719]
[1646507989710,0.37971638,2672.3,2671.1,0.00180105]
[1646507989910,3.5,2672.2,2672.1,0.00184719]
[1646507990559,3.50511638,2672.2,2672.1,0.00184719]
[1646507990761,3.50511638,2672.2,2671.7,1.18438948]
[1646507991160,0.00511638,2672.2,2671.7,1.18438948]
[1646507994508,0.00511638,2672.2,2671.8,0.9359]
[1646507994711,0.00511638,2672.2,2671.8,1.87525454]
[1646507995712,0.00511638,2672.2,2671.8,1.8718]
[1646507995912,0.00511638,2672.2,2671.9,0.0034545]
[1646507996913,0.00511638,2672.2,2671.7,1.18438948]
[1646507997115,0.00511638,2672.2,2671.9,0.00345446]
[1646507997959,0.00511638,2672.2,2671.7,1.18438948]
[1646507998163,0.00511638,2672.2,2671.3,0.187]
[1646507998361,1.53417527,2672.1,2671.9,0.00345446]
[1646507999266,1.90877527,2672.1,2671.1,0.00180105]
[1646507999469,0.00511638,2672.1,2671.9,0.0033405]
[1646507999671,0.00511638,2672.1,2671.9,1.16750601]
[1646508000369,0.00511638,2672.1,2671.9,1.16416551]
[1646508000770,0.00511638,2672.1,2671.9,1.16750601]
[1646508001718,0.00511638,2672.1,2671.9,1.16416551]
[1646508001917,0.00511638,2672.1,2671.9,1.16750601]
[1646508002113,0.00511638,2672.1,2671.9,1.16405155]
[1646508002619,0.00511638,2672.1,2671.9,0.0033405]
[1646508002819,0.00511638,2672.1,2671.2,4.93095]
[1646508003020,0.00511638,2672.1,2671.9,0.0032677]
[1646508004121,0.00511638,2672.1,2671.2,4.74395]
[1646508004321,0.00511638,2672.1,2671.9,0.0032677]
[1646508005354,0.00511638,2672.1,2671.7,0.87079492]
[1646508005555,0.00511638,2672.1,2671.9,0.0032677]
[1646508006555,0.00511638,2672.1,2671.2,0.187]
[1646508006759,0.00511638,2672.1,2671.9,0.00321337]
[1646508006957,3.79511638,2672.3,2671.9,0.00321337]
[1646508007157,0.00511638,2672.1,2671.9,0.00321337]
[1646508007458,3.50511638,2672.1,2671.9,0.00321337]
[1646508007658,1.5342673,2672.0,2671.1,0.00180105]
[1646508007858,1.5342673,2672.0,2671.9,0.00321337]
[1646508008059,0.00511638,2672.0,2671.9,0.00321337]
[1646508008957,0.00511638,2672.0,2671.7,1.01929457]
[1646508009215,0.00511638,2672.0,2671.8,0.0032134]
[1646508009420,3.70511638,2672.0,2671.8,0.0032134]
[1646508010118,3.70511638,2672.0,2671.8,2.80739]
[1646508010317,3.70511638,2672.0,2671.8,2.8106071]
[1646508010516,3.70511638,2672.0,2671.8,3.8106071]
[1646508010919,3.70511638,2672.0,2671.8,1.0032171]
[1646508011119,3.70511638,2672.0,2671.8,0.0032171]
[1646508011326,3.70511638,2672.0,2671.7,1.01929457]
[1646508011523,4.98825181,2672.0,2671.8,0.0032171]
[1646508012422,4.98825181,2672.0,2671.7,1.01929457]
[1646508012622,4.98825181,2672.0,2671.8,0.00183847]
[1646508013263,3.70511638,2672.0,2671.8,0.00183847]
[1646508013661,3.70511638,2672.0,2671.7,1.01929457]
[1646508013860,3.70511638,2672.0,2671.8,0.00183821]
[1646508014865,3.70511638,2672.0,2671.7,1.01929457]
[1646508015064,3.70511638,2672.0,2671.8,0.00321938]
[1646508016065,3.70511638,2672.0,2671.7,1.01929457]
[1646508016265,3.70511638,2672.0,2671.8,0.00321938]
[1646508017308,3.70511638,2672.0,2671.7,1.01929457]
[1646508017507,3.70511638,2672.0,2671.8,0.00321939]
[1646508018405,3.70511638,2672.0,2671.7,1.01929457]
[1646508018806,3.70511638,2672.0,2671.8,0.00321939]
[1646508019614,3.70511638,2672.0,2671.7,1.01929457]
[1646508019816,3.70511638,2672.0,2671.8,1.87182]
[1646508020014,3.70511638,2672.0,2671.8,1.87503939]
[1646508020968,3.70511638,2672.0,2671.8,0.93591]
[1646508021168,3.70511638,2672.0,2671.8,0.93912939]
[1646508021370,3.70511638,2672.0,2671.8,0.00321939]
[1646508021770,3.70511638,2672.0,2671.8,3.50321939]
[1646508021970,3.70511638,2672.0,2671.8,3.87781939]
[1646508022169,3.70511638,2672.0,2671.8,1.3746]
[1646508022372,3.70511638,2672.0,2671.8,0.37781939]
[1646508023269,3.70511638,2672.0,2671.7,3.01929457]
[1646508023469,3.70511638,2672.0,2671.8,0.00321939]
[1646508024520,3.70511638,2672.0,2671.4,1.187]
[1646508024716,3.5,2671.9,2671.8,0.00321939]
[1646508024918,0.00511638,2671.9,2671.8,0.00321939]
[1646508025714,0.00511638,2671.9,2671.4,0.187]
[1646508025917,0.00511638,2671.9,2671.7,0.00321942]
[1646508026815,0.00511638,2671.9,2671.3,0.88957495]
[1646508027216,0.00511638,2671.9,2671.7,0.00321946]
[1646508028073,0.00511638,2671.9,2671.3,0.88957495]
[1646508028373,0.00511638,2671.9,2671.7,0.00321947]
[1646508028575,0.37971638,2671.9,2670.9,0.00182735]
[1646508028775,3.50511638,2671.9,2671.0,0.93618]
[1646508028978,3.50511638,2671.9,2671.1,0.93615]
[1646508028979,0.00511638,2671.9,2671.1,0.93615]
[1646508029179,0.00511638,2671.9,2671.1,0.93797735]
[1646508029880,0.00511638,2671.9,2671.7,1.02512267]
[1646508035763,0.00511638,2671.9,2671.7,1.96105267]
[1646508035961,3.7,2672.0,2671.9,3.8746]
[1646508036362,3.7,2672.0,2671.9,4.8746]
[1646508036767,3.7,2672.0,2671.9,5.4146]
[1646508037166,3.7,2672.0,2671.9,5.04]
[1646508037769,10.4809,2672.9,2672.0,3.0]
[1646508037967,4.4911,2672.9,2672.3,1.87122]
[1646508038166,1.6357,2672.9,2672.3,3.74242]
[1646508038467,0.3746,2673.3,2672.3,4.74242]
[1646508038667,1.53368954,2672.9,2672.3,4.74242]
[1646508038868,2.6793,2673.4,2672.4,0.93110087]
[1646508039124,2.6793,2673.4,2672.4,5.23549546]
[1646508039125,2.4923,2673.4,2672.4,5.23549546]
[1646508039315,2.4923,2673.4,2672.4,6.77314659]
[1646508039914,2.4923,2673.4,2672.4,4.34229087]
[1646508040716,2.4923,2673.4,2672.4,4.52929087]